bitfinex-derivatives/quotes_BTCF0:USTF0_20241223
["timestamp","ask_amount","ask_price","bid_price","bid_amount"]
[1734932716788,0.012,95700.0,95699.0,0.053296]
[1734932716980,0.003,95700.0,95699.0,0.001]
[1734932717681,0.012,95700.0,95699.0,0.001]
[1734932718180,0.009,95700.0,95699.0,0.001]
[1734932719082,0.012,95700.0,95699.0,0.001]
[1734932720577,0.052296,95699.0,95697.0,0.18768221]
[1734932720778,0.052298,95695.0,95694.0,0.18768221]
[1734932720978,0.413098,95695.0,95694.0,0.18768221]
[1734932721680,0.3608,95695.0,95694.0,0.23998121]
[1734932721876,0.3608,95695.0,95694.0,0.052299]
[1734932722780,0.3638,95695.0,95694.0,0.052299]
[1734932723177,0.3638,95695.0,95694.0,0.30295118]
[1734932723593,0.3638,95695.0,95694.0,0.31328306]
[1734932724291,0.3638,95695.0,95694.0,0.25065218]
[1734932724590,0.3638,95695.0,95693.0,0.25065218]
[1734932724891,0.425099,95695.0,95694.0,0.001]
[1734932727397,0.3728,95695.0,95692.0,0.18791206]
[1734932727691,0.052301,95691.0,95690.0,0.00156751]
[1734932727883,0.413101,95691.0,95690.0,0.00156751]
[1734932728980,0.3608,95691.0,95690.0,0.00156751]
[1734932729484,0.3638,95691.0,95690.0,0.00156751]
[1734932730791,0.3728,95691.0,95690.0,0.00256751]
[1734932739791,0.425101,95691.0,95690.0,0.00256751]
[1734932740391,0.052305,95683.0,95682.0,0.25065218]
[1734932740692,0.413105,95683.0,95682.0,0.25065218]
[1734932741296,0.413105,95683.0,95682.0,0.15825218]
[1734932741499,0.415105,95683.0,95682.0,0.15825218]
[1734932741897,0.052308,95678.0,95677.0,0.15825218]
[1734932743004,0.053308,95678.0,95677.0,0.15825218]
[1734932743406,0.053308,95678.0,95662.0,0.06263956]
[1734932743407,0.05231,95675.0,95662.0,0.06263956]
[1734932743601,0.3608,95671.0,95663.0,0.03903107]
[1734932744300,0.3608,95671.0,95662.0,0.06263956]
[1734932744501,0.3608,95671.0,95662.0,0.057316]
[1734932744702,0.3608,95671.0,95662.0,0.059316]
[1734932745102,0.413112,95671.0,95663.0,0.004]
[1734932745999,0.052315,95665.0,95663.0,0.004]
[1734932746391,0.0569,95664.0,95663.0,0.005]
[1734932746594,0.1168,95664.0,95663.0,0.005]
[1734932746795,0.1168,95664.0,95663.0,0.001]
[1734932747200,0.37138776,95671.0,95663.0,0.001]
[1734932747408,0.37138776,95671.0,95663.0,0.058316]
[1734932747695,0.37138776,95671.0,95663.0,0.006]
[1734932747696,0.3608,95671.0,95663.0,0.006]
[1734932748493,0.3608,95671.0,95663.0,0.005]
[1734932748690,0.3608,95671.0,95663.0,0.006]
[1734932748902,0.3608,95671.0,95669.0,0.052313]
[1734932749410,0.00056001,95674.0,95669.0,0.052313]
[1734932749604,0.01066429,95677.0,95669.0,0.052313]
[1734932749806,0.14768554,95680.0,95669.0,0.052313]
[1734932750007,0.09387788,95678.0,95670.0,0.45617854]
[1734932750199,0.09387788,95678.0,95676.0,0.052309]
[1734932750696,0.09387788,95678.0,95677.0,0.03902219]
[1734932750892,0.09387788,95678.0,95677.0,0.09712219]
[1734932751306,0.3608,95687.0,95677.0,0.09712219]
[1734932751506,0.3608,95687.0,95683.0,0.052305]
[1734932752811,0.3628,95687.0,95683.0,0.052305]
[1734932753004,0.3628,95687.0,95677.0,0.0581]
[1734932753304,0.3628,95687.0,95685.0,0.052304]
[1734932753511,0.002,95687.0,95685.0,0.052304]
[1734932754909,0.004,95687.0,95685.0,0.052304]
[1734932755105,0.003,95687.0,95672.0,0.31327096]
[1734932755409,0.006,95687.0,95679.0,0.052307]
[1734932755906,0.005,95687.0,95679.0,0.052307]
[1734932756116,0.008,95687.0,95679.0,0.052307]
[1734932756906,0.007,95687.0,95679.0,0.052307]
[1734932757107,0.09387788,95685.0,95679.0,0.052307]
[1734932758311,0.09387788,95682.0,95679.0,0.052307]
[1734932759508,0.09587788,95682.0,95679.0,0.052307]
[1734932760213,0.09587788,95682.0,95680.0,0.052306]
[1734932760613,0.09787788,95682.0,95680.0,0.052306]
[1734932761012,0.004,95682.0,95680.0,0.052306]
[1734932761311,0.005,95682.0,95680.0,0.052306]
[1734932765017,0.09887788,95682.0,95680.0,0.052306]
[1734932766212,0.005,95682.0,95680.0,0.052306]
[1734932767411,0.09887788,95682.0,95680.0,0.052306]
[1734932769104,0.005,95682.0,95680.0,0.052306]
[1734932770219,0.09387788,95681.0,95680.0,0.052306]
[1734932771720,0.09687788,95681.0,95680.0,0.052306]
[1734932771922,0.09887788,95681.0,95680.0,0.052306]
[1734932772309,0.005,95681.0,95680.0,0.052306]
[1734932774920,0.09896244,95681.0,95680.0,0.052306]
[1734932775220,0.09896244,95681.0,95680.0,0.75218568]
[1734932775421,0.03996244,95681.0,95680.0,0.75218568]
[1734932775626,0.07566676,95687.0,95686.0,0.052303]
[1734932775807,0.07566676,95687.0,95686.0,0.09138268]
[1734932776724,0.15656112,95710.0,95701.0,0.052295]
[1734932777313,0.413092,95707.0,95694.0,0.052299]
[1734932777522,0.41365201,95707.0,95694.0,0.052299]
[1734932778219,0.00356801,95703.0,95694.0,0.052299]
[1734932778523,0.00456801,95703.0,95694.0,0.052299]
[1734932778924,0.00256801,95703.0,95694.0,0.053299]
[1734932779314,0.00156801,95703.0,95694.0,0.053299]
[1734932779509,0.00156801,95703.0,95694.0,0.054299]
[1734932780015,0.052295,95702.0,95694.0,0.054299]
[1734932780719,0.3608,95699.0,95694.0,0.054299]
[1734932780921,0.0598,95698.0,95694.0,0.054299]
[1734932781329,0.1164,95697.0,95694.0,0.054299]
[1734932782014,0.1164,95697.0,95694.0,0.053299]
[1734932782215,0.1164,95697.0,95694.0,0.054299]
[1734932782529,0.1164,95697.0,95694.0,0.053299]
[1734932782718,0.1174,95697.0,95694.0,0.053299]
[1734932783315,0.1174,95697.0,95695.0,0.052298]
[1734932783826,0.1264,95697.0,95695.0,0.052298]
[1734932784324,0.1174,95697.0,95695.0,0.052298]
[1734932784526,0.1264,95697.0,95695.0,0.053298]
[1734932784924,0.1254,95697.0,95695.0,0.053298]
[1734932785126,0.1264,95697.0,95695.0,0.053298]
[1734932787925,0.3608,95696.0,95695.0,0.053298]
[1734932789025,0.01,95697.0,95695.0,0.0923901]
[1734932789222,0.009,95697.0,95696.0,0.0390921]
[1734932790235,0.15656112,95706.0,95702.0,0.052295]
[1734932790535,0.3608,95707.0,95705.0,0.052293]
[1734932791129,0.51792113,95717.0,95700.0,0.3608]
[1734932791330,0.51736112,95717.0,95715.0,0.052287]
[1734932792131,0.3608,95717.0,95715.0,0.052287]
[1734932793420,0.3608,95717.0,95715.0,0.054287]
[1734932793826,0.01066815,95722.0,95715.0,0.054287]
[1734932794028,0.3608,95724.0,95715.0,0.054287]
[1734932794732,0.3608,95724.0,95715.0,0.056287]
[1734932795228,0.1012,95723.0,95715.0,0.054287]
[1734932795630,0.11191144,95723.0,95715.0,0.053287]
[1734932795827,0.11191144,95723.0,95715.0,0.001]
[1734932796027,0.3608,95716.0,95715.0,0.001]
[1734932797028,0.11191144,95723.0,95715.0,0.001]
[1734932797225,0.11191144,95723.0,95710.0,0.09537854]
[1734932797435,0.11091144,95723.0,95715.0,0.004]
[1734932798026,0.11091144,95723.0,95715.0,0.002]
[1734932798335,0.11191144,95723.0,95715.0,0.002]
[1734932798924,0.11191144,95723.0,95709.0,0.3608]
[1734932798925,0.11191144,95723.0,95710.0,0.001]
[1734932799534,0.11191144,95723.0,95710.0,0.05329]
[1734932799837,0.11191144,95723.0,95701.0,0.3608]
[1734932799838,0.052286,95718.0,95715.0,0.001]
[1734932800024,0.3608,95716.0,95715.0,0.001]
[1734932800227,0.413087,95716.0,95715.0,0.001]
[1734932800440,0.413087,95716.0,95704.0,0.052294]
[1734932800638,0.3608,95716.0,95704.0,0.052294]
[1734932800936,0.052293,95706.0,95695.0,0.32540206]
[1734932801140,0.3608,95707.0,95695.0,0.32540206]
[1734932801141,0.052294,95703.0,95695.0,0.32540206]
[1734932801327,0.19747854,95705.0,95695.0,0.32540206]
[1734932801539,0.3608,95699.0,95695.0,0.31467569]
[1734932801735,0.052297,95698.0,95695.0,0.31467569]
[1734932801934,0.052297,95698.0,95695.0,0.00156738]
[1734932802327,0.052298,95696.0,95695.0,0.00156738]
[1734932802527,0.3608,95699.0,95690.0,0.08636842]
[1734932802727,0.413101,95691.0,95690.0,0.08636842]
[1734932803330,0.413101,95691.0,95676.0,0.31310831]
[1734932803738,0.3608,95682.0,95676.0,0.31310831]
[1734932803928,0.052308,95679.0,95676.0,0.31310831]
[1734932804127,0.0505,95678.0,95676.0,0.31310831]
[1734932804735,0.0505,95678.0,95670.0,0.31310831]
[1734932804939,0.052309,95677.0,95670.0,0.31310831]
[1734932806036,0.0994,95676.0,95670.0,0.31310831]
[1734932806437,0.0994,95676.0,95660.0,0.00156801]
[1734932806438,0.413112,95671.0,95660.0,0.05388501]
[1734932806635,0.413112,95671.0,95664.0,0.052315]
[1734932807038,0.413112,95671.0,95670.0,0.002]
[1734932807630,0.413112,95671.0,95664.0,0.052315]
[1734932808340,0.413112,95671.0,95670.0,0.002]
[1734932810032,0.413112,95671.0,95664.0,0.056315]
[1734932810934,0.413112,95671.0,95670.0,0.002]
[1734932811329,0.42348015,95671.0,95670.0,0.002]
[1734932811534,0.42348015,95671.0,95664.0,0.057315]
[1734932812045,0.37116815,95671.0,95666.0,0.052314]
[1734932813442,0.37116815,95671.0,95670.0,0.002]
[1734932813842,0.37116815,95671.0,95666.0,0.052314]
[1734932814043,0.37116815,95671.0,95666.0,0.056314]
[1734932814443,0.37116815,95671.0,95666.0,0.052314]
[1734932814744,0.37116815,95671.0,95670.0,0.002]
[1734932817243,0.01036815,95671.0,95666.0,0.057314]
[1734932817442,0.052311,95673.0,95666.0,0.056314]
[1734932817842,0.052311,95673.0,95670.0,0.002]
[1734932818343,0.3608,95674.0,95671.0,0.052312]
[1734932819048,0.0994,95676.0,95671.0,0.052312]
[1734932819438,0.0499,95676.0,95671.0,0.052312]
[1734932819848,0.0505,95678.0,95674.0,0.05231]
[1734932821144,0.06097217,95678.0,95670.0,0.002]
[1734932821651,0.06097217,95678.0,95671.0,0.001]
[1734932821948,0.3608,95686.0,95675.0,0.052309]
[1734932822253,0.37127532,95682.0,95675.0,0.052309]
[1734932823049,0.37127532,95682.0,95672.0,0.1059]
[1734932823352,0.37127532,95682.0,95677.0,0.052308]
[1734932825145,0.37227532,95682.0,95677.0,0.052308]
[1734932825344,0.37327532,95682.0,95677.0,0.052308]
[1734932825846,0.37327532,95682.0,95672.0,0.1059]
[1734932827041,0.37327532,95682.0,95680.0,0.052306]
[1734932827548,0.37227532,95682.0,95672.0,0.159211]
[1734932827851,0.37127532,95682.0,95672.0,0.159211]
[1734932828153,0.37427532,95682.0,95672.0,0.1059]
[1734932828451,0.3648,95682.0,95672.0,0.1059]
[1734932828757,0.001,95682.0,95680.0,0.052306]
[1734932829249,0.15656112,95697.0,95695.0,0.052298]
[1734932830340,0.3608,95698.0,95697.0,0.052297]
[1734932832145,0.3698,95698.0,95697.0,0.053297]
[1734932832652,0.3708,95698.0,95697.0,0.053297]
[1734932837754,0.01,95698.0,95697.0,0.053297]
[1734932847763,0.01,95698.0,95691.0,0.37104609]
[1734932847764,0.3708,95698.0,95691.0,0.18752446]
[1734932847951,0.11,95697.0,95691.0,0.18752446]
[1734932848259,0.0523,95692.0,95691.0,0.18752446]
[1734932849059,0.0523,95692.0,95682.0,0.052305]
[1734932849364,0.0523,95692.0,95691.0,0.001]
[1734932850646,0.0533,95692.0,95691.0,0.001]
[1734932850847,0.0613,95692.0,95691.0,0.001]
[1734932851664,0.0613,95692.0,95669.0,0.67390831]
[1734932851665,0.052305,95684.0,95678.0,0.18752446]
[1734932852562,0.3608,95686.0,95678.0,0.18752446]
[1734932853065,0.001,95684.0,95678.0,0.18752446]
[1734932853250,0.001,95684.0,95675.0,0.18752446]
[1734932853558,0.413108,95677.0,95675.0,0.18752446]
[1734932853761,0.0977,95676.0,95675.0,0.18752446]
[1734932854562,0.0977,95676.0,95666.0,0.18752446]
[1734932854857,0.413114,95667.0,95666.0,0.18752446]
[1734932855858,0.052316,95664.0,95660.0,0.00156801]
[1734932856169,0.052317,95663.0,95660.0,0.00156801]
[1734932856556,0.052317,95662.0,95660.0,0.00156801]
[1734932857867,0.052317,95662.0,95660.0,0.00356801]
[1734932858061,0.053317,95662.0,95660.0,0.00956801]
[1734932861267,0.053317,95662.0,95660.0,0.008]
[1734932861768,0.05232,95655.0,95644.0,0.052326]
[1734932862270,0.3608,95656.0,95644.0,0.052326]
[1734932862271,0.052321,95654.0,95644.0,0.052326]
[1734932862967,0.052321,95654.0,95644.0,0.058326]
[1734932864062,0.052321,95654.0,95644.0,0.066326]
[1734932864666,0.001,95654.0,95648.0,0.3608]
[1734932864862,0.001,95654.0,95652.0,0.052322]
[1734932865257,0.001,95654.0,95649.0,0.0454]
[1734932865258,0.0488,95669.0,95653.0,0.0498]
[1734932865660,0.12504428,95673.0,95665.0,0.052314]
[1734932866468,0.36136001,95676.0,95665.0,0.052314]
[1734932866764,0.3618,95667.0,95665.0,0.052314]
[1734932867166,0.001,95667.0,95665.0,0.052314]
[1734932868272,0.003,95667.0,95665.0,0.052314]
[1734932869958,0.003,95667.0,95658.0,0.3608]
[1734932870165,0.003,95667.0,95656.0,0.01060001]
[1734932870166,0.052319,95658.0,95656.0,0.01060001]
[1734932870564,0.05232,95656.0,95647.0,0.18752446]
[1734932870870,0.052321,95654.0,95647.0,0.18752446]
[1734932871065,0.0461,95657.0,95647.0,0.18752446]
[1734932871266,0.052322,95653.0,95647.0,0.18752446]
[1734932871976,0.052322,95653.0,95645.0,0.00156816]
[1734932872163,0.052322,95653.0,95647.0,0.001]
[1734932873574,0.052323,95651.0,95647.0,0.001]
[1734932873783,0.052324,95650.0,95647.0,0.001]
[1734932874285,0.052324,95648.0,95647.0,0.001]
[1734932882570,0.12504428,95653.0,95647.0,0.001]
[1734932883173,0.12504428,95651.0,95647.0,0.001]
[1734932883379,0.12504428,95651.0,95649.0,0.052323]
[1734932884373,0.12804428,95651.0,95649.0,0.413123]
[1734932884680,0.003,95651.0,95650.0,0.096]
[1734932885181,0.004,95651.0,95650.0,0.148323]
[1734932885779,0.004,95651.0,95650.0,0.18734327]
[1734932886865,0.12504428,95665.0,95663.0,0.052316]
[1734932887071,0.12504428,95665.0,95664.0,0.3608]
[1734932887275,0.12504428,95666.0,95665.0,0.052315]
[1734932888684,0.36144,95674.0,95665.0,0.052315]
[1734932888977,0.3608,95674.0,95666.0,0.052314]
[1734932889379,0.12504428,95675.0,95668.0,0.052313]
[1734932890378,0.01033952,95677.0,95668.0,0.052313]
[1734932890379,0.01033952,95677.0,95668.0,0.24007487]
[1734932890582,0.12504428,95679.0,95668.0,0.24007487]
[1734932891081,0.003,95675.0,95668.0,0.24007487]
[1734932891380,0.003,95675.0,95668.0,0.18776187]
[1734932891580,0.052309,95676.0,95668.0,0.18776187]
[1734932891786,0.052309,95676.0,95667.0,0.18776187]
[1734932891982,0.001,95675.0,95667.0,0.18776187]
[1734932892883,0.001,95675.0,95665.0,0.052314]
[1734932893186,0.004,95677.0,95664.0,0.54920187]
[1734932893379,0.001,95676.0,95668.0,0.052313]
[1734932893984,0.004,95675.0,95668.0,0.052313]
[1734932894585,0.001,95676.0,95668.0,0.052313]
[1734932894775,0.005,95676.0,95668.0,0.052313]
[1734932894975,0.004,95676.0,95668.0,0.052313]
[1734932895178,0.001,95675.0,95668.0,0.052313]
[1734932895472,0.005,95675.0,95668.0,0.052313]
[1734932895877,0.004,95675.0,95668.0,0.052313]
[1734932896872,0.005,95675.0,95668.0,0.052313]
[1734932897086,0.001,95675.0,95668.0,0.052313]
[1734932898381,0.005,95675.0,95668.0,0.052313]
[1734932899282,0.052311,95672.0,95664.0,0.54924187]
[1734932899492,0.052312,95671.0,95664.0,0.3608]
[1734932899689,0.005,95675.0,95664.0,0.3608]
[1734932900188,0.005,95675.0,95662.0,0.18776187]
[1734932900384,0.052315,95664.0,95662.0,0.18776187]
[1734932900576,0.0465,95663.0,95662.0,0.18776187]
[1734932901280,0.0465,95663.0,95659.0,0.18776187]
[1734932901589,0.413118,95660.0,95659.0,0.18776187]
[1734932902082,0.413118,95660.0,95659.0,0.11106187]
[1734932902479,0.713118,95660.0,95638.0,0.25046803]
[1734932902783,0.052329,95639.0,95638.0,0.25046803]
[1734932902987,0.3608,95647.0,95638.0,0.25046803]
[1734932903190,0.052326,95645.0,95638.0,0.25046803]
[1734932903687,0.052327,95643.0,95638.0,0.25046803]
[1734932903890,0.052328,95642.0,95638.0,0.25046803]
[1734932904284,0.052328,95642.0,95632.0,0.052333]
[1734932904285,0.09382717,95641.0,95632.0,0.052333]
[1734932904877,0.001,95639.0,95632.0,0.052333]
[1734932905482,0.09382717,95641.0,95632.0,0.052333]
[1734932905483,0.09582717,95641.0,95632.0,0.052333]
[1734932905689,0.003,95641.0,95632.0,0.052333]
[1734932906483,0.001,95639.0,95632.0,0.052333]
[1734932907191,0.003,95639.0,95632.0,0.052333]
[1734932907991,0.002,95639.0,95632.0,0.052333]
[1734932908291,0.3608,95638.0,95632.0,0.052333]
[1734932908885,0.3608,95638.0,95628.0,0.05]
[1734932909685,0.3618,95638.0,95628.0,0.05]
[1734932910893,0.003,95638.0,95628.0,0.05]
[1734932911195,0.002,95638.0,95628.0,0.102335]
[1734932911488,0.0457,95644.0,95628.0,0.05]
[1734932911695,0.09537854,95650.0,95634.0,0.413132]
[1734932911696,0.46572283,95647.0,95634.0,0.413132]
[1734932911989,0.052326,95646.0,95634.0,0.413132]
[1734932912587,0.052326,95645.0,95634.0,0.413132]
[1734932913703,0.01045566,95647.0,95634.0,0.3608]
[1734932913893,0.09382717,95651.0,95638.0,0.052329]
[1734932914196,0.052324,95648.0,95638.0,0.052329]
[1734932914597,0.052325,95647.0,95638.0,0.052329]
[1734932914788,0.052329,95640.0,95629.0,0.052334]
[1734932914985,0.14770754,95640.0,95629.0,0.052334]
[1734932915392,0.052329,95640.0,95629.0,0.052334]
[1734932915891,0.3608,95641.0,95628.0,0.05]
[1734932916483,0.3608,95641.0,95630.0,0.09537854]
[1734932916691,0.3608,95641.0,95628.0,0.05]
[1734932916896,0.3608,95641.0,95635.0,0.052331]
[1734932917097,0.055325,95647.0,95635.0,0.052331]
[1734932917098,0.004,95647.0,95635.0,0.052331]
[1734932917299,0.3608,95642.0,95635.0,0.052331]
[1734932917497,0.003,95647.0,95635.0,0.052331]
[1734932917798,0.09537854,95650.0,95635.0,0.052331]
[1734932918097,0.052326,95645.0,95635.0,0.052331]
[1734932918299,0.001,95641.0,95635.0,0.052331]
[1734932918996,0.052326,95645.0,95635.0,0.052331]
[1734932920595,0.004,95641.0,95635.0,0.052331]
[1734932921102,0.001,95641.0,95635.0,0.052331]
[1734932921295,0.056326,95645.0,95635.0,0.052331]
[1734932922002,0.003,95641.0,95639.0,0.3608]
[1734932922197,0.004,95641.0,95639.0,0.3608]
[1734932922993,0.004,95641.0,95640.0,0.052329]
[1734932923397,0.001,95641.0,95640.0,0.052329]
[1734932924103,0.006,95641.0,95640.0,0.052329]
[1734932924305,0.005,95641.0,95640.0,0.052329]
[1734932925205,0.001,95641.0,95640.0,0.052329]
[1734932925400,0.006,95641.0,95640.0,0.052329]
[1734932929598,0.005,95641.0,95640.0,0.052329]
[1734932929801,0.006,95641.0,95640.0,0.052329]
[1734932930408,0.005,95641.0,95640.0,0.052329]
[1734932930706,0.006,95641.0,95640.0,0.30279703]
[1734932931708,0.006,95641.0,95640.0,0.09131525]
[1734932932106,0.006,95641.0,95640.0,0.25873775]
[1734932932408,0.09382717,95647.0,95646.0,0.052325]
[1734932932603,0.09382717,95647.0,95646.0,0.09131125]
[1734932932999,0.09382717,95653.0,95651.0,0.052323]
[1734932933205,0.09382717,95653.0,95652.0,0.44608625]
[1734932934711,0.009,95653.0,95652.0,0.44708625]
[1734932935602,0.009,95653.0,95652.0,0.45735353]
[1734932937804,0.009,95653.0,95652.0,0.7077559]
[1734932938510,0.009,95653.0,95652.0,0.66876965]
[1734932939207,0.009,95653.0,95652.0,0.41836728]
[1734932939407,0.009,95653.0,95652.0,0.45737227]
[1734932939606,0.009,95653.0,95652.0,0.41836728]
[1734932940421,0.009,95653.0,95652.0,0.66876965]
[1734932941705,0.009,95653.0,95652.0,0.41836728]
[1734932942516,0.009,95653.0,95652.0,0.3618]
[1734932948611,0.009,95653.0,95652.0,0.44810429]
[1734932948918,0.09382717,95658.0,95652.0,0.44810429]
[1734932949118,0.04382717,95658.0,95657.0,0.052319]
[1734932949320,0.04382717,95658.0,95657.0,0.09132329]
[1734932950317,0.0494,95673.0,95657.0,0.03900429]
[1734932950510,0.0494,95673.0,95665.0,0.413115]
[1734932951409,0.0494,95673.0,95665.0,0.3608]
[1734932951622,0.0494,95673.0,95669.0,0.052312]
[1734932952818,0.0494,95673.0,95669.0,0.054312]
[1734932953905,0.0494,95673.0,95669.0,0.057312]
[1734932958627,0.12504428,95676.0,95675.0,0.052309]
[1734932959726,0.51800112,95683.0,95675.0,0.052309]
[1734932959727,0.48648428,95683.0,95680.0,0.052306]
[1734932960027,0.48584428,95683.0,95675.0,0.001]
[1734932960432,0.0474,95682.0,95675.0,0.002]
[1734932960727,0.0954,95682.0,95675.0,0.002]
[1734932960920,0.0954,95682.0,95675.0,0.001]
[1734932961120,0.0954,95682.0,95680.0,0.007]
[1734932961725,0.0954,95682.0,95674.0,0.41383]
[1734932961914,0.0954,95682.0,95674.0,0.41311]
[1734932962323,0.36136001,95683.0,95674.0,0.3608]
[1734932962523,0.3608,95683.0,95679.0,0.052307]
[1734932963018,0.12504428,95684.0,95679.0,0.052307]
[1734932963522,0.12504428,95684.0,95680.0,0.007]
[1734932963719,0.12504428,95685.0,95680.0,0.007]
[1734932964225,0.12504428,95685.0,95679.0,0.059307]
[1734932964619,0.12504428,95685.0,95679.0,0.007]
[1734932964814,0.052305,95683.0,95680.0,0.006]
[1734932965223,0.0448,95682.0,95680.0,0.006]
[1734932965731,0.144906,95682.0,95680.0,0.006]
[1734932966622,0.144906,95682.0,95680.0,0.01]
[1734932967233,0.144906,95682.0,95680.0,0.004]
[1734932967826,0.144906,95682.0,95680.0,0.011]
[1734932968030,0.12504428,95681.0,95680.0,0.011]
[1734932968932,0.48584428,95681.0,95666.0,0.25038767]
[1734932969229,0.48584428,95681.0,95668.0,0.25038767]
[1734932969230,0.052313,95669.0,95668.0,0.25038767]
[1734932970023,0.3608,95673.0,95668.0,0.25038767]
[1734932970826,0.3608,95673.0,95668.0,0.30270067]
[1734932971022,0.51736112,95673.0,95670.0,0.052312]
[1734932971835,0.52336112,95673.0,95670.0,0.052312]
[1734932972132,0.12521654,95672.0,95670.0,0.052312]
[1734932972533,0.12521654,95672.0,95670.0,0.053312]
[1734932972926,0.12521654,95672.0,95670.0,0.001]
[1734932973322,0.13921654,95673.0,95670.0,0.001]
[1734932973632,0.052312,95672.0,95670.0,0.001]
[1734932974228,0.052312,95672.0,95664.0,0.052315]
[1734932974432,0.061312,95672.0,95670.0,0.001]
[1734932975229,0.058312,95672.0,95670.0,0.001]
[1734932975430,0.061312,95672.0,95670.0,0.001]
[1734932975927,0.052312,95670.0,95664.0,0.052315]
[1734932977336,0.15656112,95671.0,95656.0,0.05232]
[1734932977636,0.052317,95661.0,95656.0,0.05232]
[1734932977830,0.05232,95657.0,95654.0,0.25038767]
[1734932978231,0.0435,95663.0,95654.0,0.25038767]
[1734932978628,0.0435,95663.0,95656.0,0.05232]
[1734932978829,0.002,95661.0,95656.0,0.05232]
[1734932980233,0.12727017,95661.0,95656.0,0.05232]
[1734932980634,0.12527017,95661.0,95656.0,0.05232]
[1734932980843,0.12727017,95661.0,95656.0,0.05232]
[1734932981332,0.12927017,95661.0,95656.0,0.05232]
[1734932981537,0.004,95661.0,95656.0,0.05232]
[1734932983546,0.052319,95657.0,95651.0,0.0434]
[1734932984244,0.052319,95657.0,95651.0,0.095722]
[1734932984435,0.004,95661.0,95655.0,0.05232]
[1734932984631,0.004,95661.0,95660.0,0.052318]
[1734932984632,0.002,95661.0,95660.0,0.052318]
[1734932984835,0.12527017,95662.0,95660.0,0.052318]
[1734932985238,0.3608,95664.0,95660.0,0.052318]
[1734932985645,0.002,95661.0,95660.0,0.052318]
[1734932987147,0.004,95662.0,95660.0,0.052318]
[1734932987354,0.002,95661.0,95660.0,0.052318]
[1734932987848,0.006,95661.0,95660.0,0.052318]
[1734932988038,0.007,95661.0,95660.0,0.052318]
[1734932988439,0.003,95661.0,95660.0,0.052318]
[1734932988936,0.003,95661.0,95654.0,0.01030905]
[1734932989137,0.007,95661.0,95651.0,0.34610967]
[1734932989945,0.007,95661.0,95651.0,0.29378767]
[1734932990147,0.007,95661.0,95652.0,0.052322]
[1734932990444,0.004,95661.0,95652.0,0.052322]
[1734932990639,0.005,95661.0,95652.0,0.052322]
[1734932990841,0.003,95661.0,95652.0,0.052322]
[1734932991240,0.003,95661.0,95655.0,0.05232]
[1734932991241,0.002,95661.0,95655.0,0.05232]
[1734932992340,0.002,95661.0,95654.0,0.3608]
[1734932992548,0.002,95661.0,95658.0,0.052318]
[1734932993442,0.003,95661.0,95658.0,0.052318]
[1734932993643,0.004,95661.0,95658.0,0.052318]
[1734932994351,0.005,95661.0,95658.0,0.052318]
[1734932996341,0.005,95661.0,95654.0,0.61186767]
[1734932996546,0.05757017,95664.0,95663.0,0.052316]
[1734932996745,0.05757017,95664.0,95663.0,0.45213307]
[1734932997959,0.18751799,95675.0,95663.0,0.45213307]
[1734932997960,0.41366601,95682.0,95663.0,0.58045186]
[1734932998147,0.005,95664.0,95663.0,0.59375079]
[1734932998344,0.008,95664.0,95663.0,0.63278864]
[1734933000150,0.005,95664.0,95663.0,0.63378864]
[1734933000555,0.005,95664.0,95663.0,0.64415987]
[1734933000753,0.005,95664.0,95663.0,0.58147264]
[1734933001051,0.005,95664.0,95663.0,0.18063479]
[1734933001252,0.3658,95664.0,95663.0,0.18063479]
[1734933001754,0.41812845,95664.0,95663.0,0.18063479]
[1734933001959,0.41312845,95664.0,95663.0,0.18363479]
[1734933002450,0.41312845,95664.0,95663.0,0.003]
[1734933003762,0.41612845,95664.0,95652.0,0.25067489]
[1734933003959,0.052317,95662.0,95652.0,0.25067489]
[1734933006266,0.052317,95662.0,95652.0,0.30299689]
[1734933006858,0.053317,95662.0,95652.0,0.30299689]
[1734933007061,0.001,95662.0,95652.0,0.25067489]
[1734933007364,0.001,95662.0,95657.0,0.052319]
[1734933008170,0.3608,95661.0,95657.0,0.052319]
[1734933008752,0.001,95662.0,95657.0,0.052319]
[1734933009566,0.01052845,95664.0,95657.0,0.30299389]
[1734933009868,0.002,95662.0,95657.0,0.30299389]
[1734933010060,0.002,95662.0,95659.0,0.052318]
[1734933010255,0.004,95662.0,95661.0,0.052317]
[1734933010466,0.004,95662.0,95661.0,0.413117]
[1734933010664,0.002,95662.0,95661.0,0.4521667]
[1734933010869,0.004,95664.0,95663.0,0.052316]
[1734933011169,0.004,95664.0,95663.0,0.0913657]
[1734933011367,0.15656112,95672.0,95663.0,0.0390497]
[1734933011567,0.15656112,95672.0,95671.0,0.052312]
[1734933011762,0.15656112,95672.0,95671.0,0.0913617]
[1734933011956,0.15656112,95672.0,95671.0,0.1341617]
[1734933012173,0.15656112,95683.0,95682.0,0.052306]
[1734933013772,0.00156803,95686.0,95682.0,0.052306]
[1734933013970,0.00156803,95686.0,95682.0,0.055306]
[1734933014565,0.00156803,95686.0,95682.0,0.062306]
[1734933015270,0.00156803,95686.0,95682.0,0.061306]
[1734933016272,0.15656112,95697.0,95682.0,0.009]
[1734933016462,0.15656112,95697.0,95690.0,0.052301]
[1734933017067,0.15656112,95697.0,95688.0,0.3608]
[1734933017370,0.15656112,95697.0,95696.0,0.3608]
[1734933017564,0.18751799,95702.0,95696.0,0.3608]
[1734933017565,0.15656112,95705.0,95696.0,0.3608]